Cogmind - Beta 14 @@@ ROGUE MODE // 2024.11.21 @ 18:25:38 Player: akira Result: Self-destructed Performance ------------- Evolutions (1) 500 Regions Visited (2) 400 Robots Destroyed (24) 120 Value Destroyed (693) 693 Prototype IDs (0) 0 Alien Tech Used (0) 0 Bonus (0) 0 TOTAL SCORE: 1713 Bonus ------- None Cogmind --------- Core Integrity 90/400 Matter 300/300 Energy 100/100 System Corruption 4% Temperature Cool (0) Movement Core (700) Ox13 Location -9/Materials Parts ------- > --- POWER (1) -------- (None) > --- PROPULSION (3) --- (None) > --- UTILITY (3) ------ High-capacity Storage Unit Signal Interpreter Power Shielding > --- WEAPON (2) ------- (None) > --- INVENTORY (20) --- Light Ion Engine Aluminum Leg Aluminum Leg Small Storage Unit Assault Rifle Light Assault Rifle Light Assault Rifle Datajack Peak State ------------ > --- POWER ------------ Ion Engine > --- PROPULSION ------- Light Treads Light Treads > --- UTILITY ---------- High-capacity Storage Unit Signal Interpreter > --- WEAPON ----------- Hammer Hammer > --- INVENTORY -------- Light Ion Engine Light Treads Aluminum Leg Aluminum Leg Small Storage Unit Power Shielding Assault Rifle Light Assault Rifle Light Assault Rifle Datajack [Rating: 8] Favorites ----------- Power Ion Engine Engine Ion Engine Power Core Light Nuclear Core Propulsion Light Treads Treads Light Treads Leg Aluminum Leg Utility High-capacity Storage Unit Storage High-capacity Storage Unit Processor Signal Interpreter Protection Power Shielding Weapon Hammer Ballistic Gun Assault Rifle Impact Weapon Hammer Build | -11 -10 -9 ------- Run | Yrd Mat Mat Slots Evolved 2 | . . 2 Power . | . . . Propulsion 1 | . . 1 Utility 1 | . . 1 Weapon . | . . . Parts Attached 23 | 7 13 3 Power 6 | 2 4 . Engine 5 | 2 3 . Core 1 | . 1 . Reactor . | . . . Propulsion 9 | 3 4 2 Treads 6 | 1 3 2 Leg 3 | 2 1 . Wheel . | . . . Hover . | . . . Flight . | . . . Utility 5 | 1 3 1 Device . | . . . Storage 2 | 1 1 . Processor 1 | . 1 . Hackware . | . . . Protection 2 | . 1 1 Artifact . | . . . Weapon 3 | 1 2 . Energy Gun . | . . . Energy Cannon . | . . . Ballistic Gun 1 | 1 . . Ballistic Cannon . | . . . Launcher . | . . . Special Weapon . | . . . Impact Weapon 2 | . 2 . Slashing Weapon . | . . . Piercing Weapon . | . . . Special Melee Weapon . | . . . Unidentified Prototypes . | . . . Corrupted Parts 1 | . . 1 System Corruption 4 | . . 4 Parts Lost 11 | . 5 6 Power 3 | . 3 . Propulsion 6 | . 2 4 Utility . | . . . Weapon 2 | . . 2 Highest Loss Streak 4 | . 2 4 To Critical Strikes . | . . . Average Slot Usage (%) 79 | . 79 75 Engine 5 | . 6 . Core 1 | . 1 . Treads 23 | . 23 20 Leg 3 | . 3 . Storage 13 | . 14 11 Processor 6 | . 6 11 Protection 3 | . 2 10 Ballistic Gun 2 | . 2 . Impact Weapon 17 | . 16 22 Peak Build Rating 8 | 5 8 8 Average Rating 6 | 3 6 6 On Entrance 4 | . 5 7 Naked Turns . | . . . Heaviest Build 49 | 12 49 45 Greatest Support 60 | 20 40 60 Greatest Overweight (x) 14 | . 1 14 Average Overweight (x) . | . . 1 Largest Inventory Capacity 20 | 8 20 20 Average Capacity 17 | 6 17 20 Most Carried 10 | 5 10 9 Average Carried 8 | 3 8 8 Final Capacity 20 | 8 20 20 Final Carried 10 | 4 10 8 Class Distribution -------------------- 100% | Mutant Dominant Class ---------------- Mutant | -10/Materials Mutant | -9/Materials Resources | -11 -10 -9 ----------- Run | Yrd Mat Mat Matter Collected 592 | 221 346 25 Remotely . | . . . Salvage Created 824 | . 691 133 Parts 33 | . 32 1 Haulers Intercepted . | . . . Recyclers Shooed . | . . . Parts Field Recycled . | . . . Retrieved Matter . | . . . Parts Self-Destructed . | . . . Prevented . | . . . Kills | -11 -10 -9 ------- Run | Yrd Mat Mat Combat Hostiles Destroyed 18 | . 16 2 Melee 4 | . 4 . Guns 7 | . 7 . Classes Destroyed 6 | . 4 2 Worker 1 | . . 1 Operator 2 | . 2 . Watcher 3 | . 2 1 Swarmer 2 | . 2 . Grunt 14 | . 14 . Sentry 2 | . . 2 Best Kill Streak 4 | . 4 1 Combat Bots Only 4 | . 4 1 Max Kills in Single Turn 1 | . 1 1 Gunslinging . | . . . Exploded . | . . . Melee 1 | . 1 . Uniques/NPCs Destroyed . | . . . Combat | -11 -10 -9 -------- Run | Yrd Mat Mat Hostile Shots Fired 216 | . 138 78 Missed 59 | . 37 22 Damage Taken 1918 | . 1159 759 Core 533 | . 223 310 Absorbed by Shields . | . . . Redirected to Shielding 9 | . 9 . Core Remaining (%) 55 | 100 10 . Volleys Fired 63 | . 63 . Largest 1 | . 1 . Hottest 20 | . 20 . Shots Fired 63 | . 63 . Gun 63 | . 63 . Cannon . | . . . Launcher . | . . . Special . | . . . Kinetic 63 | . 63 . Thermal . | . . . Explosive . | . . . Electromagnetic . | . . . Robot Hit Streak 14 | . 14 . Robot Miss Streak 3 | . 3 . Penetration Max . | . . . Secondary Targets . | . . . Shots Hit Robots 86 | . 74 12 Core Hits 19 | . 18 1 Critical Kills 1 | . 1 . Critical Parts Destroyed 11 | . 8 3 Critical Strikes 12 | . 9 3 Destroy 1 | . 1 . Smash 11 | . 8 3 Melee Attacks 63 | . 48 15 Impact 63 | . 48 15 Slashing . | . . . Piercing . | . . . Sneak Attacks 3 | . 2 1 Combat Hostiles . | . . . Follow-up Attacks 5 | . 4 1 Damage Inflicted 1633 | . 1361 272 Guns 544 | . 544 . Cannons . | . . . Explosions . | . . . Melee 1089 | . 817 272 Ramming . | . . . Kinetic 544 | . 544 . Thermal . | . . . Explosive . | . . . Electromagnetic . | . . . Impact 1089 | . 817 272 Slashing . | . . . Piercing . | . . . Highest Corruption 4 | . . 4 Average Corruption 4 | . . 4 Corruption Purged . | . . . Corruption Blocked . | . . . Effects 5 | . . 5 Matter Fused 4 | . . 4 Alerts 1 | . . 1 Overload Shots . | . . . Overflow Damage 394 | . 311 83 Projectiles . | . . . Explosions . | . . . Melee 394 | . 311 83 Knockbacks 6 | . 5 1 Impact 6 | . 5 1 Kinetic . | . . . Secondary . | . . . Self-Inflicted Damage . | . . . Shots . | . . . Rammed . | . . . Targets Rammed . | . . . Kicked . | . . . Crushed . | . . . Highest Temperature 19 | . 19 11 Average Temperature 4 | . 4 11 Received Heat Transfer 921 | . 591 330 Siege Activations . | . . . Robots Corrupted 9 | . 6 3 Combat Hostiles 7 | . 5 2 Parts Fried 19 | . 11 8 Impact Corruptions 18 | . 13 5 Robots Melted . | . . . Combat Hostiles . | . . . Parts Melted . | . . . Heat Transferred . | . . . Parts Sabotaged . | . . . Parts Stolen . | . . . Parts Stripped . | . . . Power Chain Reactions . | . . . Alert | -11 -10 -9 ------- Run | Yrd Mat Mat Peak Influence 175 | . 175 142 Initial 20 | . . 20 Average 65 | . 67 68 Maximum Alert Level . | . . . Low Security (%) 100 | 100 100 100 Level 1 . | . . . Level 2 . | . . . Level 3 . | . . . Level 4 . | . . . Level 5 . | . . . High Security . | . . . Max Security . | . . . Squads Dispatched 5 | . 5 . Investigation 3 | . 3 . Extermination . | . . . Reinforcement 2 | . 2 . Assault . | . . . Garrison . | . . . Intercept . | . . . Searches Triggered . | . . . Construction Impeded . | . . . Haulers Reinforced . | . . . Active Scanning Responses . | . . . Cargo Convoy Interrupts . | . . . Stealth | -11 -10 -9 --------- Run | Yrd Mat Mat Distress Signals 4 | . 3 1 Communications Jammed . | . . . Distress Signals . | . . . Times Spotted 43 | . 35 8 Peak Tracking Total 6 | . 4 6 Tactical Retreats 7 | . 5 2 Traps | -11 -10 -9 ------- Run | Yrd Mat Mat Traps Triggered 4 | . 4 . Indirectly . | . . . Trap Hack Attempts . | . . . Triggered . | . . . Disarmed . | . . . Reprogrammed . | . . . Reused . | . . . Traps Extracted . | . . . Installed . | . . . Triggered . | . . . Machines | -11 -10 -9 ---------- Run | Yrd Mat Mat Machines Disabled . | . . . Max in Single Turn . | . . . Machines Repaired . | . . . Machines Dismantled . | . . . Machines Sabotaged . | . . . Overloaded Fab Kills . | . . . Hacking | -11 -10 -9 --------- Run | Yrd Mat Mat Machines Accessed . | . . . Terminals . | . . . Fabricators . | . . . Repair Stations . | . . . Recycling Units . | . . . Scanalyzers . | . . . Garrison Access . | . . . Total Hacks . | . . . Successful . | . . . Failed . | . . . Catastrophic . | . . . Database Lockouts . | . . . Manual . | . . . Terminals . | . . . Fabricators . | . . . Repair Stations . | . . . Recycling Units . | . . . Scanalyzers . | . . . Garrison Access . | . . . Terminal Hacks . | . . . Fabricator Hacks . | . . . Repair Station Hacks . | . . . Recycling Unit Hacks . | . . . Scanalyzer . | . . . Garrison Access Hacks . | . . . Unauthorized Hacks . | . . . Terminals . | . . . Fabricators . | . . . Repair Stations . | . . . Recycling Units . | . . . Scanalyzers . | . . . Garrison Access . | . . . Data Cores Recovered 1 | . 1 . Used . | . . . Hacking Detections . | . . . Full Trace Events . | . . . Feedback Events . | . . . Feedback Blocked . | . . . Robot Schematics Acquired . | . . . Robots Built . | . . . Authchips . | . . . Time . | . . . Total Robot Build Rating . | . . . Part Schematics Acquired . | . . . Parts Built . | . . . Authchips . | . . . Time . | . . . Total Part Build Rating . | . . . Parts Repaired . | . . . Time . | . . . Parts Recycled . | . . . Recycled Matter . | . . . Retrieved Matter . | . . . Retrieved Components . | . . . Parts Scanalyzed . | . . . Part Schematics Acquired . | . . . Parts Damaged . | . . . Bothacking | -11 -10 -9 ------------ Run | Yrd Mat Mat Used RIF Installer . | . . . Robots Hacked . | . . . Non-combat . | . . . Combat . | . . . Robot Hacks Applied . | . . . Relay Couplers Released . | . . . Fabnet Peak Effective % . | . . . Robots Rewired . | . . . Allies Hacked . | . . . Hacks Repelled . | . . . Allies | -11 -10 -9 -------- Run | Yrd Mat Mat Total Allies . | . . . Largest Group . | . . . Highest-Rated Group . | . . . Highest-Rated Ally . | . . . Total Orders . | . . . Ally Attacks . | . . . Total Damage . | . . . Kills . | . . . Allies Corrupted . | . . . Allies Melted . | . . . Intel | -11 -10 -9 ------- Run | Yrd Mat Mat Robot Analysis Total . | . . . Derelict Logs Recovered . | . . . Drone Launches . | . . . Drone Recoveries . | . . . Exploration | -11 -10 -9 ------------- Run | Yrd Mat Mat Turns Passed 2926 | 77 2571 278 Spaces Moved 1111 | 62 965 84 Core 20 | 17 . 3 Treads 872 | . 791 81 Legs 219 | 45 174 . Wheels . | . . . Hover . | . . . Flight . | . . . Fastest Speed 50 | 50 120 160 Average Speed 209 | 100 213 249 Slowest Speed 750 | 120 240 750 Overloaded Moves . | . . . Propulsion Burnouts . | . . . Robots Hopped . | . . . Cave-ins Triggered . | . . . Exploration Rate (%) 33 | 3 83 13 Regions Visited 2 Branch Regions . Pre-discovered Areas . | . . . Known Exits Taken 1 | . 1 . Unknown Exits Taken 1 | 1 . . Scrap Searched . | . . . Spaces Dug 4 | . 4 . Terrain Destroyed 4 | . 4 . Melee 4 | . 4 . Projectile . | . . . AOE . | . . . Terrain Rammed . | . . . Walls Destroyed . | . . . Machines Disabled . | . . . Actions | -11 -10 -9 --------- Run | Yrd Mat Mat Total 1535 | 76 1333 126 Wait 263 | . 238 25 Move 1109 | 61 964 84 Hop . | . . . Pick Up 16 | 7 9 . Fast Attach 5 | 1 3 1 Attach 13 | 5 6 2 Detach 3 | 1 2 . Swap 5 | 1 4 . Drop . | . . . Fire 63 | . 63 . Melee 58 | . 44 14 Ram . | . . . Kick . | . . . Crush . | . . . Escape Stasis . | . . . Rewire . | . . . Trap . | . . . Miscellaneous . | . . . Route ------- -11/Scrapyard -10/Materials (discovered 5 exits: *Mat x3 / *Min / *Sub) -9/Materials (discovered 1 exit: [*Min]) History --------- Turn | Location | Event 5 | -11/Scrapyard | Discovered new exit (range 15) 78 | -11/Scrapyard | Entered Materials 309 | -10/Materials | Build established: Mutant 595 | -10/Materials | Discovered new exit (range 10) 912 | -10/Materials | Discovered new exit (range 12) 1109 | -10/Materials | Discovered new exit (range 9) 1114 | -10/Materials | Core integrity fell below 50% 1178 | -10/Materials | Discovered new exit (range 4) 1570 | -10/Materials | Identified exit to Materials 1864 | -10/Materials | Core integrity fell below 20% 2267 | -10/Materials | Discovered new exit (range 8) 2281 | -10/Materials | Identified exit to Subcaves 2497 | -10/Materials | Identified exit to Mines 2649 | -10/Materials | Entered another Materials area 2649 | -9/Materials | Evolved 2 slots: Propulsion x1, Utility x1 2890 | -9/Materials | Discovered new exit (range 12) 2902 | -9/Materials | Core integrity fell below 50% 2927 | -9/Materials | Self-destructed Last Messages --------------- 02866_ K-01 Serf collects debris. 02874_ System corrupted: Matter fused (-5). 02876_ Lgt. Treads destroyed. 02887_ Hammer follow-up attack on Y-45 Defender. 02890_ EXIT=FOUND 02892_ Lgt. Treads destroyed. 02899_ Y-45 Defender suffers critical hit (Smash). 02899_ Destroyed Lgt. Treads. 02899_ Y-45 Defender system corrupted by crushing effect. 02900_ Y-45 Defender system terminally corrupted. 02900_ Imp. Ion Engine fried. 02900_ K-01 Serf collects debris. 02901_ Critical hit (Burn: +37). 02904_ K-01 Serf collects debris. 02910_ System corrupted: Matter fused (-5). 02910_ K-01 Serf collects debris. 02920_ Hammer destroyed. 02921_ K-01 Serf collects debris. 02924_ Hammer destroyed. Map ----- +----------------------------------------------------+ | ?????????????????????????????????????????????????? | | ?????????????????????????????????????????????????? | | ?????????????????????????????????????????????????? | | ?????????????????????????????????????????????????? | | ?????????????????????????????????????????????????? | | ?????????????????????????????????????????????????? | | ?????????????????????????????????????????????????? | | ?????????????????????????????????????????????????? | | ?????????????????????????????????????????????????? | | ?????????????????????????? ?????????????????????? | | ?????????????????????????? ?????????????????????? | | ?????????????????????????? ?????????????????????? | | ?????????????????????????" ?????????????????????? | | ?????????????????????????" ?????????????????????? | | ????????????????????????? ?????????????????????? | | ????????????????????????? ?????????????????????? | | ????????????????????????? ?????????????????????? | | ????????????????????????? ?????????????????????? | | ??????????????!"????????? ?????????????????????? | | ?????????????"!"|"?????###+###???????????????????? | | ???????????? ##### #???????????????????? | | ???????????? #???????????????????? | | ????????????? < #???????????????????? | | ?????????????????? g %k #???????????????????? | | ???????????????????????# gg #???????????????????? | | ???????????????????????##@ ##???????????????????? | | ???????????????????###### #????????????????????? | | ????????????######## #????????????????????? | | ??????????? #????????????????????? | | ??????????????### #????????????????????? | | ????????????????# ##????????????????????? | | ????????????????# #?????????????????????? | | ????????????????# #?????????????????????? | | ????????????????# ### #?????????????????????? | | ?????????????# ??# #?????????????????????? | | ?????????????# #####;#??# #?????????????????????? | | ?????????????# ????? ???# #?????????????????????? | | ???????????????????? "???# #?????????????????????? | | ??????????????????? ????# #?????????????????????? | | ?????????????????????????# #?????????????????????? | | ?????????????????????????# #?????????????????????? | | ?????????????????????????# #?????????????????????? | | ?????????????????????????# #??????????????? ???? | | ?????????????????????????# #??????????????# ???? | | ?????????????????????????# #??????????????# #??? | | ?????????????????????????# #??????????????# #??? | | ?????????????????????????# #??????????????# #??? | | ?????????????????????????# #??????????????# +??? | | ?????????????????????????# #??????????????# #??? | | ?????????????????????????# #??????????????# #??? | +----------------------------------------------------+ Best States ------------- Heat Dissipation 28 Energy Generation 14 Energy Capacity 250 Matter Stores 300 Matter Capacity 300 Sight Range 16 Terrain Scan Density 10 Power Shielding 33 Evasion (%) 55 Recoil Reduction 3 Item Schematics ----------------- None Robot Schematics ------------------ None Fabricated ------------ Nothing Alien Tech Used ----------------- None Achievements -------------- None Challenges ------------ None Game ------ Seed HeatMetafiberMicroactuators Manual? 0 Play Time 00:20:29 Cumulative 11.6 hours Start 2024.11.21 @ 18:04:50 End 2024.11.21 @ 18:25:38 Sessions 1 Manual Loads 0 Difficulty Rogue Special Mode None Game No. 17 Rogue 17 Adventurer 0 Explorer 0 Win Type - Total 0 Types 0/0/0/0/0/0/0/0/0 Lore% 4 Gallery% 14 Achievement% 16 Wizard Run 0 Options --------- Layout 1 ASCII 0 Keyboard 0 Movement Mouse Keybinds 0 Fullscreen 1 Font 16/SmallcapsGlow Map View 55x38 Zoom Use 41% Tactical HUD 1 Map Filters NONE Filters NONE Steam 1 RUN: 9f7ec0f2-0901-4269-90f4-23a967bc4755